[Event "Late-Titled-Tuesday-Blitz-August-29-2023"]
[Site "Chess.com"]
[Date "2023.08.29"]
[Round "6"]
[White "AlexOstrovskiy"]
[Black "el_sporco"]
[Result "1-0"]
[WhiteElo "2655"]
[BlackElo "2424"]
[TimeControl "180+1"]
[EndTime "15:04:04 PDT"]
[Termination "AlexOstrovskiy won by resignation"]

1. e4 {[%clk 0:03:00.9]} 1... c5 {[%clk 0:02:59.6]} 2. b3 {[%clk 0:03:00.1]}
2... b6 {[%clk 0:02:58.2]} 3. Bb2 {[%clk 0:02:56.3]} 3... Bb7 {[%clk 0:02:59.1]}
4. Nc3 {[%clk 0:02:57.1]} 4... Nc6 {[%clk 0:02:59.1]} 5. f4 {[%clk 0:02:56.8]}
5... d6 {[%clk 0:02:55.7]} 6. Nf3 {[%clk 0:02:57.1]} 6... g6 {[%clk 0:02:49.1]}
7. d4 {[%clk 0:02:57.3]} 7... cxd4 {[%clk 0:02:48.4]} 8. Nxd4 {[%clk 0:02:58.2]}
8... Bg7 {[%clk 0:02:48.6]} 9. Nxc6 {[%clk 0:02:49.7]} 9... Bxc6 {[%clk
0:02:49.5]} 10. Bd3 {[%clk 0:02:38.8]} 10... Nf6 {[%clk 0:02:44.9]} 11. Qe2
{[%clk 0:02:39.1]} 11... Rc8 {[%clk 0:02:28.7]} 12. O-O-O {[%clk 0:02:39.2]}
12... Qc7 {[%clk 0:02:23.5]} 13. Kb1 {[%clk 0:02:37.3]} 13... O-O {[%clk
0:02:19.1]} 14. Rhe1 {[%clk 0:02:32.9]} 14... Nd7 {[%clk 0:02:14.9]} 15. h4
{[%clk 0:02:10.1]} 15... Bxc3 {[%clk 0:01:59.3]} 16. Bxc3 {[%clk 0:02:11]} 16...
Bxe4 {[%clk 0:01:59.2]} 17. Bb2 {[%clk 0:01:55]} 17... Bxd3 {[%clk 0:01:54.4]}
18. Rxd3 {[%clk 0:01:55.9]} 18... Nc5 {[%clk 0:01:40.9]} 19. Re3 {[%clk
0:01:56]} 19... Ne6 {[%clk 0:01:40.1]} 20. f5 {[%clk 0:01:42]} 20... Nf4 {[%clk
0:01:10.2]} 21. Qd2 {[%clk 0:01:42.3]} 21... Qc6 {[%clk 0:00:54.2]} 22. Rc3
{[%clk 0:01:21.8]} 22... Qxg2 {[%clk 0:00:33.6]} 23. Qxf4 {[%clk 0:01:21.2]}
23... Rxc3 {[%clk 0:00:29.2]} 24. Bxc3 {[%clk 0:01:22.1]} 24... Rc8 {[%clk
0:00:29.5]} 25. Qd4 {[%clk 0:01:20.3]} 25... f6 {[%clk 0:00:27.4]} 26. fxg6
{[%clk 0:01:19.9]} 26... e5 {[%clk 0:00:24.2]} 27. gxh7+ {[%clk 0:01:14]} 27...
Kxh7 {[%clk 0:00:24.5]} 28. Qd3+ {[%clk 0:01:09.1]} 28... Kg7 {[%clk 0:00:24.5]}
29. Re3 {[%clk 0:01:02]} 1-0

[Event "Late-Titled-Tuesday-Blitz-August-29-2023"]
[Site "Chess.com"]
[Date "2023.08.29"]
[Round "6"]
[White "cthake"]
[Black "schachlana"]
[Result "0-1"]
[WhiteElo "1867"]
[BlackElo "2309"]
[TimeControl "180+1"]
[EndTime "15:04:09 PDT"]
[Termination "schachlana won by resignation"]

1. e4 {[%clk 0:03:00.9]} 1... c5 {[%clk 0:02:57.1]} 2. Nf3 {[%clk 0:02:59.2]}
2... e6 {[%clk 0:02:56.4]} 3. c4 {[%clk 0:02:56.8]} 3... Nc6 {[%clk 0:02:52.3]}
4. Nc3 {[%clk 0:02:56.5]} 4... e5 {[%clk 0:02:40]} 5. d3 {[%clk 0:02:48.6]} 5...
g6 {[%clk 0:02:40.5]} 6. g3 {[%clk 0:02:43.5]} 6... Bg7 {[%clk 0:02:40.9]} 7.
Bg2 {[%clk 0:02:43.7]} 7... Nge7 {[%clk 0:02:41.5]} 8. O-O {[%clk 0:02:43.6]}
8... O-O {[%clk 0:02:42.2]} 9. Nd5 {[%clk 0:02:40]} 9... d6 {[%clk 0:02:40.4]}
10. Be3 {[%clk 0:02:31.9]} 10... h6 {[%clk 0:02:36.1]} 11. Qd2 {[%clk 0:02:32]}
11... Kh7 {[%clk 0:02:36.4]} 12. h4 {[%clk 0:02:23.4]} 12... Be6 {[%clk
0:02:33.3]} 13. Rae1 {[%clk 0:02:15.4]} 13... Bg4 {[%clk 0:02:25.8]} 14. Nh2
{[%clk 0:02:11.9]} 14... Be6 {[%clk 0:02:23.4]} 15. f4 {[%clk 0:02:10.9]} 15...
Bxd5 {[%clk 0:02:18.3]} 16. cxd5 {[%clk 0:02:10.4]} 16... Nd4 {[%clk 0:02:19.1]}
17. Nf3 {[%clk 0:02:01.8]} 17... f5 {[%clk 0:02:09.8]} 18. fxe5 {[%clk
0:01:58.6]} 18... dxe5 {[%clk 0:02:10.7]} 19. Nxd4 {[%clk 0:01:48.3]} 19... cxd4
{[%clk 0:02:02.3]} 20. Bf2 {[%clk 0:01:46.7]} 20... Ng8 {[%clk 0:01:57.5]} 21.
Kh2 {[%clk 0:01:43]} 21... Nf6 {[%clk 0:01:56.9]} 22. Bh3 {[%clk 0:01:32.1]}
22... Nh5 {[%clk 0:01:49.5]} 23. Qb4 {[%clk 0:01:19.3]} 23... b6 {[%clk
0:01:40.3]} 24. Rc1 {[%clk 0:01:15.3]} 24... Rc8 {[%clk 0:01:18.2]} 25. Rc6
{[%clk 0:01:13.5]} 25... Rxc6 {[%clk 0:01:17.9]} 26. dxc6 {[%clk 0:01:13.8]}
26... f4 {[%clk 0:01:01.5]} 27. g4 {[%clk 0:01:11.6]} 27... Ng3 {[%clk
0:00:50.3]} 28. Bxg3 {[%clk 0:01:09.5]} 28... fxg3+ {[%clk 0:00:51.2]} 29. Kxg3
{[%clk 0:01:09.8]} 29... Bf6 {[%clk 0:00:51.1]} 30. g5 {[%clk 0:01:02.4]} 30...
hxg5 {[%clk 0:00:46.7]} 31. hxg5 {[%clk 0:01:02.7]} 31... Be7 {[%clk 0:00:47.2]}
32. Qe1 {[%clk 0:00:59.6]} 32... Bxg5 {[%clk 0:00:45.4]} 33. Rxf8 {[%clk
0:00:53.9]} 33... Qxf8 {[%clk 0:00:46.3]} 34. Qf2 {[%clk 0:00:53.7]} 34... Bh4+
{[%clk 0:00:45.6]} 0-1

[Event "Late-Titled-Tuesday-Blitz-August-29-2023"]
[Site "Chess.com"]
[Date "2023.08.29"]
[Round "6"]
[White "IlanSchnaider"]
[Black "Kostukov_Alex"]
[Result "1-0"]
[WhiteElo "2705"]
[BlackElo "2425"]
[TimeControl "180+1"]
[EndTime "15:04:10 PDT"]
[Termination "IlanSchnaider won by resignation"]

1. e4 {[%clk 0:03:00.9]} 1... c5 {[%clk 0:02:59.6]} 2. Nf3 {[%clk 0:03:01.1]}
2... g6 {[%clk 0:03:00.1]} 3. c3 {[%clk 0:03:00.5]} 3... Bg7 {[%clk 0:02:59.9]}
4. d4 {[%clk 0:03:00.3]} 4... cxd4 {[%clk 0:03:00.2]} 5. cxd4 {[%clk 0:03:01.2]}
5... d5 {[%clk 0:03:00.7]} 6. e5 {[%clk 0:03:01.9]} 6... Nc6 {[%clk 0:03:00.9]}
7. Be2 {[%clk 0:03:01.4]} 7... Nh6 {[%clk 0:02:57.5]} 8. O-O {[%clk 0:03:00.9]}
8... Bg4 {[%clk 0:02:57.2]} 9. Nbd2 {[%clk 0:03:00.6]} 9... O-O {[%clk
0:02:55.7]} 10. h3 {[%clk 0:03:00.6]} 10... Bxf3 {[%clk 0:02:54]} 11. Nxf3
{[%clk 0:03:01.5]} 11... Nf5 {[%clk 0:02:53.5]} 12. g4 {[%clk 0:03:01.4]} 12...
Nh6 {[%clk 0:02:52.4]} 13. Be3 {[%clk 0:02:59.3]} 13... f6 {[%clk 0:02:52]} 14.
Rc1 {[%clk 0:02:14.1]} 14... Nf7 {[%clk 0:02:37.5]} 15. e6 {[%clk 0:02:07]}
15... Nd6 {[%clk 0:02:35.9]} 16. Qb3 {[%clk 0:02:07.7]} 16... Qb6 {[%clk
0:02:15.6]} 17. Qxd5 {[%clk 0:01:48.4]} 17... Qxb2 {[%clk 0:02:12.9]} 18. Rfe1
{[%clk 0:01:43.9]} 18... Nb4 {[%clk 0:02:02.4]} 19. Qb3 {[%clk 0:01:39.8]} 19...
Qxb3 {[%clk 0:02:00]} 20. axb3 {[%clk 0:01:40.7]} 20... Rfc8 {[%clk 0:01:57.3]}
21. Rc5 {[%clk 0:01:34.3]} 21... b6 {[%clk 0:01:53.9]} 22. Rxc8+ {[%clk
0:01:32.4]} 22... Rxc8 {[%clk 0:01:54]} 23. Bf4 {[%clk 0:01:28.7]} 23... Ne4
{[%clk 0:01:22]} 24. Bc4 {[%clk 0:01:20.1]} 24... f5 {[%clk 0:01:22.1]} 25. gxf5
{[%clk 0:01:10.5]} 25... gxf5 {[%clk 0:01:21.4]} 26. d5 {[%clk 0:01:10.2]} 26...
a6 {[%clk 0:01:12.8]} 27. d6 {[%clk 0:01:07.2]} 27... b5 {[%clk 0:00:47.4]} 28.
d7 {[%clk 0:01:03.1]} 28... Ra8 {[%clk 0:00:47]} 29. Rd1 {[%clk 0:00:52.5]}
29... Nc6 {[%clk 0:00:40.5]} 30. Bd5 {[%clk 0:00:50.8]} 1-0

[Event "Late-Titled-Tuesday-Blitz-August-29-2023"]
[Site "Chess.com"]
[Date "2023.08.29"]
[Round "6"]
[White "Sanan_Sjugirov"]
[Black "reevecanada"]
[Result "1-0"]
[WhiteElo "2857"]
[BlackElo "2547"]
[TimeControl "180+1"]
[EndTime "15:04:14 PDT"]
[Termination "Sanan_Sjugirov won by checkmate"]

1. d4 {[%clk 0:03:00.9]} 1... d5 {[%clk 0:02:59.2]} 2. Nf3 {[%clk 0:03:01.2]}
2... c6 {[%clk 0:02:59]} 3. g3 {[%clk 0:03:01.4]} 3... Nf6 {[%clk 0:02:59.2]} 4.
Bg2 {[%clk 0:03:01.5]} 4... g6 {[%clk 0:02:58.7]} 5. c4 {[%clk 0:03:01.1]} 5...
Bg7 {[%clk 0:02:58]} 6. Qb3 {[%clk 0:03:00.8]} 6... O-O {[%clk 0:02:57.6]} 7.
Nc3 {[%clk 0:03:00.7]} 7... dxc4 {[%clk 0:02:56.9]} 8. Qxc4 {[%clk 0:03:00.7]}
8... b5 {[%clk 0:02:57.4]} 9. Qb3 {[%clk 0:02:57.3]} 9... Bb7 {[%clk 0:02:57.5]}
10. O-O {[%clk 0:02:56.7]} 10... Nbd7 {[%clk 0:02:56.1]} 11. Rd1 {[%clk
0:02:56.1]} 11... Qc7 {[%clk 0:02:54.9]} 12. Bf4 {[%clk 0:02:55.7]} 12... Qb6
{[%clk 0:02:54.2]} 13. e4 {[%clk 0:02:43.9]} 13... a6 {[%clk 0:02:52.1]} 14. e5
{[%clk 0:02:42.7]} 14... Nd5 {[%clk 0:02:51.1]} 15. Nxd5 {[%clk 0:02:40.8]}
15... cxd5 {[%clk 0:02:50.8]} 16. h4 {[%clk 0:02:40.3]} 16... Rfc8 {[%clk
0:02:46.9]} 17. h5 {[%clk 0:02:39.4]} 17... e6 {[%clk 0:02:39.1]} 18. Bf1 {[%clk
0:02:28]} 18... Rc6 {[%clk 0:02:31.4]} 19. Qe3 {[%clk 0:02:27.8]} 19... Rac8
{[%clk 0:02:30.2]} 20. Bd3 {[%clk 0:02:26.8]} 20... a5 {[%clk 0:02:25.3]} 21.
Bh6 {[%clk 0:02:25.7]} 21... Bh8 {[%clk 0:02:20]} 22. Qf4 {[%clk 0:02:19.5]}
22... Qd8 {[%clk 0:02:00.7]} 23. Bg5 {[%clk 0:02:05.4]} 23... Qb6 {[%clk
0:01:53.6]} 24. Be7 {[%clk 0:02:03.5]} 24... Re8 {[%clk 0:01:39.6]} 25. Bd6
{[%clk 0:01:59.6]} 25... Rxd6 {[%clk 0:01:04]} 26. exd6 {[%clk 0:01:59.2]} 26...
Bf6 {[%clk 0:01:01.4]} 27. Rac1 {[%clk 0:01:55.4]} 27... Bc6 {[%clk 0:00:55.7]}
28. Rxc6 {[%clk 0:01:30.2]} 28... Qxc6 {[%clk 0:00:51.3]} 29. Rc1 {[%clk
0:01:30.7]} 29... Qa8 {[%clk 0:00:17.1]} 30. Bxb5 {[%clk 0:01:26.2]} 30... Qd8
{[%clk 0:00:14.3]} 31. Bxd7 {[%clk 0:01:25.9]} 31... g5 {[%clk 0:00:14.7]} 32.
Qg4 {[%clk 0:01:16.4]} 32... Qxd7 {[%clk 0:00:13.7]} 33. Nxg5 {[%clk 0:01:16.9]}
33... Kh8 {[%clk 0:00:13.8]} 34. Rc7 {[%clk 0:01:16]} 34... Qxc7 {[%clk
0:00:10]} 35. dxc7 {[%clk 0:01:15.9]} 35... Rg8 {[%clk 0:00:10.9]} 36. Nxf7#
{[%clk 0:01:16.1]} 1-0

[Event "Late-Titled-Tuesday-Blitz-August-29-2023"]
[Site "Chess.com"]
[Date "2023.08.29"]
[Round "6"]
[White "ilushka"]
[Black "jaskol95"]
[Result "0-1"]
[WhiteElo "2380"]
[BlackElo "2584"]
[TimeControl "180+1"]
[EndTime "15:04:23 PDT"]
[Termination "jaskol95 won by checkmate"]

1. e4 {[%clk 0:03:00.9]} 1... d5 {[%clk 0:02:59.2]} 2. exd5 {[%clk 0:02:59.9]}
2... Nf6 {[%clk 0:02:59.8]} 3. Nf3 {[%clk 0:02:58.4]} 3... Bg4 {[%clk
0:02:59.2]} 4. Be2 {[%clk 0:02:55.3]} 4... Qxd5 {[%clk 0:02:56]} 5. h3 {[%clk
0:02:55.6]} 5... Bh5 {[%clk 0:02:53.5]} 6. c4 {[%clk 0:02:50.8]} 6... Qd6 {[%clk
0:02:45.8]} 7. d4 {[%clk 0:02:48.1]} 7... e6 {[%clk 0:02:44.2]} 8. Nc3 {[%clk
0:02:39.7]} 8... Be7 {[%clk 0:02:43.1]} 9. Qa4+ {[%clk 0:02:28.7]} 9... c6
{[%clk 0:02:41]} 10. Be3 {[%clk 0:02:24.8]} 10... O-O {[%clk 0:02:40.1]} 11.
O-O-O {[%clk 0:02:22]} 11... Nbd7 {[%clk 0:02:25.4]} 12. g4 {[%clk 0:02:16.3]}
12... Bg6 {[%clk 0:02:22.1]} 13. Nh4 {[%clk 0:02:06.8]} 13... b5 {[%clk
0:02:19.4]} 14. cxb5 {[%clk 0:02:02.9]} 14... cxb5 {[%clk 0:02:19.8]} 15. Nxb5
{[%clk 0:02:00.3]} 15... Rfc8+ {[%clk 0:02:19.4]} 16. Nc3 {[%clk 0:01:53.6]}
16... Ne4 {[%clk 0:01:38]} 17. Nxg6 {[%clk 0:01:48.9]} 17... hxg6 {[%clk
0:01:38]} 18. Rd3 {[%clk 0:01:37]} 18... Nb6 {[%clk 0:01:35.6]} 19. Qc2 {[%clk
0:01:02.3]} 19... Nd5 {[%clk 0:01:33.6]} 20. Bf3 {[%clk 0:00:51.9]} 20... Nb4
{[%clk 0:01:17.8]} 21. Qe2 {[%clk 0:00:33.3]} 21... Nxa2+ {[%clk 0:01:17.1]} 22.
Kc2 {[%clk 0:00:28.5]} 22... Naxc3 {[%clk 0:01:10]} 23. bxc3 {[%clk 0:00:26.1]}
23... Nxc3 {[%clk 0:01:04.5]} 24. Rxc3 {[%clk 0:00:23.3]} 24... Rxc3+ {[%clk
0:01:04.5]} 25. Kxc3 {[%clk 0:00:23.1]} 25... Rc8+ {[%clk 0:00:54]} 26. Kd3
{[%clk 0:00:14.4]} 26... Qa6+ {[%clk 0:00:50.4]} 27. Ke4 {[%clk 0:00:14.5]}
27... f5+ {[%clk 0:00:48.4]} 28. Kf4 {[%clk 0:00:14.2]} 28... Qd6# {[%clk
0:00:48.1]} 0-1

[Event "Late-Titled-Tuesday-Blitz-August-29-2023"]
[Site "Chess.com"]
[Date "2023.08.29"]
[Round "6"]
[White "rdarruda"]
[Black "h4parah5"]
[Result "0-1"]
[WhiteElo "2573"]
[BlackElo "2955"]
[TimeControl "180+1"]
[EndTime "15:04:41 PDT"]
[Termination "h4parah5 won by resignation"]

1. d4 {[%clk 0:03:00.2]} 1... Nf6 {[%clk 0:02:59.6]} 2. Nf3 {[%clk 0:02:59.3]}
2... g6 {[%clk 0:02:59.5]} 3. Nc3 {[%clk 0:02:58.6]} 3... d5 {[%clk 0:02:58.8]}
4. Bg5 {[%clk 0:02:57.6]} 4... Bg7 {[%clk 0:02:58.9]} 5. Bxf6 {[%clk 0:02:57.7]}
5... exf6 {[%clk 0:02:58.2]} 6. e3 {[%clk 0:02:57.8]} 6... O-O {[%clk
0:02:57.3]} 7. Ne2 {[%clk 0:02:58]} 7... f5 {[%clk 0:02:56.4]} 8. h4 {[%clk
0:02:57.8]} 8... Re8 {[%clk 0:02:51.6]} 9. h5 {[%clk 0:02:55.7]} 9... a5 {[%clk
0:02:50.2]} 10. Qd2 {[%clk 0:02:50.8]} 10... c6 {[%clk 0:02:42.8]} 11. O-O-O
{[%clk 0:02:42.6]} 11... Nd7 {[%clk 0:02:40.9]} 12. Nf4 {[%clk 0:02:39.4]} 12...
Nf6 {[%clk 0:02:39]} 13. hxg6 {[%clk 0:02:34.3]} 13... hxg6 {[%clk 0:02:35.9]}
14. c4 {[%clk 0:02:34.2]} 14... a4 {[%clk 0:02:28.6]} 15. Kb1 {[%clk 0:02:33.6]}
15... a3 {[%clk 0:02:27.7]} 16. b3 {[%clk 0:02:32.3]} 16... Ne4 {[%clk
0:02:27.1]} 17. Qc2 {[%clk 0:02:31.5]} 17... Qa5 {[%clk 0:02:19.2]} 18. Rc1
{[%clk 0:02:28.1]} 18... Bd7 {[%clk 0:02:16.8]} 19. Nd3 {[%clk 0:02:27.2]} 19...
b5 {[%clk 0:02:10.6]} 20. c5 {[%clk 0:02:19.6]} 20... b4 {[%clk 0:02:07.9]} 21.
Nde5 {[%clk 0:02:14.6]} 21... Nc3+ {[%clk 0:02:06.5]} 22. Ka1 {[%clk 0:02:13.7]}
22... Qc7 {[%clk 0:01:57.2]} 23. Bd3 {[%clk 0:02:10.1]} 23... Ra5 {[%clk
0:01:44.2]} 24. Qd2 {[%clk 0:01:34]} 24... Rxe5 {[%clk 0:01:32.2]} 25. Nxe5
{[%clk 0:01:27.2]} 25... Bxe5 {[%clk 0:01:33.1]} 26. dxe5 {[%clk 0:01:27]} 26...
Qxe5 {[%clk 0:01:33.3]} 27. Rxc3 {[%clk 0:01:14.4]} 27... Rxc5 {[%clk 0:01:31]}
28. Rc1 {[%clk 0:01:12.5]} 28... Rxc3 {[%clk 0:01:29]} 29. Rxc3 {[%clk
0:01:12.4]} 29... bxc3 {[%clk 0:01:27]} 30. Qc2 {[%clk 0:01:12.3]} 30... c5
{[%clk 0:01:19.5]} 31. g3 {[%clk 0:01:11.4]} 31... d4 {[%clk 0:01:16.2]} 32.
exd4 {[%clk 0:01:02.2]} 32... Qxd4 {[%clk 0:01:17.1]} 33. Kb1 {[%clk 0:01:00.5]}
33... Bc6 {[%clk 0:01:16.3]} 34. Kc1 {[%clk 0:00:56.6]} 34... Be4 {[%clk
0:01:08.4]} 35. Bxe4 {[%clk 0:00:56]} 35... fxe4 {[%clk 0:01:09.3]} 36. Qe2
{[%clk 0:00:54]} 36... Qd3 {[%clk 0:01:08.5]} 37. Qe1 {[%clk 0:00:45.7]} 37...
Kg7 {[%clk 0:00:56.7]} 38. Qe3 {[%clk 0:00:45.6]} 38... Kg8 {[%clk 0:00:46]} 39.
Qe1 {[%clk 0:00:44.3]} 39... Kh7 {[%clk 0:00:42.2]} 40. Qe3 {[%clk 0:00:43.8]}
40... Qf1+ {[%clk 0:00:41.3]} 41. Kc2 {[%clk 0:00:43.4]} 41... Qa1 {[%clk
0:00:42]} 42. Qxc3 {[%clk 0:00:41.2]} 42... Qxa2+ {[%clk 0:00:42.1]} 43. Kd1
{[%clk 0:00:40.3]} 43... Qb1+ {[%clk 0:00:42]} 0-1

[Event "Late-Titled-Tuesday-Blitz-August-29-2023"]
[Site "Chess.com"]
[Date "2023.08.29"]
[Round "6"]
[White "adiosabu"]
[Black "Levanzovsky"]
[Result "1-0"]
[WhiteElo "2626"]
[BlackElo "2414"]
[TimeControl "180+1"]
[EndTime "15:04:42 PDT"]
[Termination "adiosabu won by resignation"]

1. d4 {[%clk 0:02:52.7]} 1... Nf6 {[%clk 0:02:59]} 2. Nf3 {[%clk 0:02:51.3]}
2... e6 {[%clk 0:02:57.3]} 3. Bf4 {[%clk 0:02:51]} 3... d5 {[%clk 0:02:49.9]} 4.
e3 {[%clk 0:02:50.5]} 4... Bd6 {[%clk 0:02:47.8]} 5. Bd3 {[%clk 0:02:50.4]} 5...
O-O {[%clk 0:02:48.1]} 6. O-O {[%clk 0:02:49.3]} 6... b6 {[%clk 0:02:46.6]} 7.
Ne5 {[%clk 0:02:41.7]} 7... Ba6 {[%clk 0:02:42.8]} 8. Nd2 {[%clk 0:02:18.2]}
8... Bxd3 {[%clk 0:02:41.6]} 9. cxd3 {[%clk 0:02:19.1]} 9... c5 {[%clk
0:02:39.1]} 10. Rc1 {[%clk 0:02:03.2]} 10... Ne8 {[%clk 0:02:27.8]} 11. Qg4
{[%clk 0:01:47.6]} 11... Nd7 {[%clk 0:01:58.3]} 12. Ndf3 {[%clk 0:01:42.1]}
12... Rc8 {[%clk 0:01:32.8]} 13. dxc5 {[%clk 0:01:27.8]} 13... bxc5 {[%clk
0:01:28.9]} 14. b3 {[%clk 0:01:25.3]} 14... Nxe5 {[%clk 0:01:15.2]} 15. Bxe5
{[%clk 0:01:23.2]} 15... Bxe5 {[%clk 0:01:11.1]} 16. Nxe5 {[%clk 0:01:24.1]}
16... Nd6 {[%clk 0:01:03.5]} 17. Rc2 {[%clk 0:01:18.3]} 17... Qa5 {[%clk
0:00:59.9]} 18. Rfc1 {[%clk 0:01:16.1]} 18... Qa3 {[%clk 0:00:39.2]} 19. Nd7
{[%clk 0:01:10.7]} 19... Rfd8 {[%clk 0:00:25.9]} 20. Nxc5 {[%clk 0:01:09.5]}
20... Nb7 {[%clk 0:00:22.2]} 21. d4 {[%clk 0:01:01.6]} 21... Nxc5 {[%clk
0:00:20]} 22. dxc5 {[%clk 0:01:00]} 22... a5 {[%clk 0:00:18.7]} 23. h4 {[%clk
0:00:57.9]} 23... Rc6 {[%clk 0:00:18.4]} 24. h5 {[%clk 0:00:55.4]} 24... h6
{[%clk 0:00:18.5]} 25. Qd4 {[%clk 0:00:52.3]} 25... Rdc8 {[%clk 0:00:18.4]} 26.
g4 {[%clk 0:00:51.6]} 26... Qb4 {[%clk 0:00:17]} 27. Kg2 {[%clk 0:00:47.4]}
27... e5 {[%clk 0:00:16.4]} 28. Qxb4 {[%clk 0:00:43.5]} 28... axb4 {[%clk
0:00:17.3]} 29. f4 {[%clk 0:00:43]} 29... f6 {[%clk 0:00:16.6]} 30. Kf3 {[%clk
0:00:41]} 30... Kf7 {[%clk 0:00:16.9]} 31. e4 {[%clk 0:00:38.9]} 31... Ke6
{[%clk 0:00:17.3]} 32. f5+ {[%clk 0:00:38.2]} 1-0

[Event "Late-Titled-Tuesday-Blitz-August-29-2023"]
[Site "Chess.com"]
[Date "2023.08.29"]
[Round "6"]
[White "ahkashefi2800"]
[Black "Garmendiarov"]
[Result "1-0"]
[WhiteElo "2582"]
[BlackElo "2333"]
[TimeControl "180+1"]
[EndTime "15:04:42 PDT"]
[Termination "ahkashefi2800 won by resignation"]

1. d3 {[%clk 0:02:59.4]} 1... d5 {[%clk 0:02:58.5]} 2. Nf3 {[%clk 0:03:00.3]}
2... Nf6 {[%clk 0:02:58.8]} 3. g3 {[%clk 0:03:01.2]} 3... g6 {[%clk 0:02:58.6]}
4. Bg2 {[%clk 0:03:02.1]} 4... Bg7 {[%clk 0:02:59.2]} 5. O-O {[%clk 0:03:03]}
5... O-O {[%clk 0:02:59.8]} 6. Nbd2 {[%clk 0:03:00.7]} 6... Nc6 {[%clk 0:02:59]}
7. Rb1 {[%clk 0:02:58.8]} 7... a5 {[%clk 0:02:56.9]} 8. b3 {[%clk 0:02:59.1]}
8... e5 {[%clk 0:02:56.3]} 9. Bb2 {[%clk 0:02:58.7]} 9... Re8 {[%clk 0:02:55.7]}
10. e4 {[%clk 0:02:58.2]} 10... a4 {[%clk 0:02:52.8]} 11. Re1 {[%clk 0:02:56.3]}
11... h6 {[%clk 0:02:42.6]} 12. h3 {[%clk 0:02:47.3]} 12... Qd6 {[%clk
0:02:29.2]} 13. exd5 {[%clk 0:02:44.9]} 13... Nxd5 {[%clk 0:02:07.2]} 14. Nc4
{[%clk 0:02:44.1]} 14... Qc5 {[%clk 0:01:57.1]} 15. Nfxe5 {[%clk 0:02:43.3]}
15... Nxe5 {[%clk 0:01:44.2]} 16. Nxe5 {[%clk 0:02:39.1]} 16... Nc3 {[%clk
0:01:38.4]} 17. Bxc3 {[%clk 0:02:35.9]} 17... Qxc3 {[%clk 0:01:39.3]} 18. Nc4
{[%clk 0:02:00.7]} 18... Rd8 {[%clk 0:00:37.5]} 19. Qd2 {[%clk 0:01:48.3]} 19...
axb3 {[%clk 0:00:30.7]} 20. axb3 {[%clk 0:01:46.3]} 20... Qxd2 {[%clk
0:00:14.9]} 21. Nxd2 {[%clk 0:01:47.2]} 21... Bc3 {[%clk 0:00:15.2]} 22. Re2
{[%clk 0:01:47.5]} 22... Ra2 {[%clk 0:00:15.4]} 23. Ne4 {[%clk 0:01:47.6]} 23...
Bg7 {[%clk 0:00:13.6]} 24. Rbe1 {[%clk 0:01:47.9]} 24... c6 {[%clk 0:00:12.1]}
25. Nc5 {[%clk 0:01:46.6]} 25... Kf8 {[%clk 0:00:09.3]} 26. Ne4 {[%clk
0:01:37.5]} 26... f5 {[%clk 0:00:07.6]} 27. Nc5 {[%clk 0:01:34.4]} 27... Bc3
{[%clk 0:00:05.5]} 28. Rd1 {[%clk 0:01:29.7]} 28... Bd4 {[%clk 0:00:05.2]} 29.
b4 {[%clk 0:01:26.7]} 29... Re8 {[%clk 0:00:03.9]} 30. Rxe8+ {[%clk 0:01:23]}
30... Kxe8 {[%clk 0:00:04.8]} 31. Rd2 {[%clk 0:01:20.4]} 31... Ra1+ {[%clk
0:00:04.1]} 32. Kh2 {[%clk 0:01:20.1]} 32... Rb1 {[%clk 0:00:03.3]} 33. Nb3
{[%clk 0:01:19.7]} 33... Bc3 {[%clk 0:00:02.9]} 34. Re2+ {[%clk 0:01:19.8]}
34... Kf7 {[%clk 0:00:03.3]} 35. b5 {[%clk 0:01:18.8]} 35... cxb5 {[%clk
0:00:02.8]} 36. Bd5+ {[%clk 0:01:19]} 36... Kf6 {[%clk 0:00:02.4]} 37. Re8
{[%clk 0:01:18.6]} 37... Bd7 {[%clk 0:00:01.6]} 38. Rd8 {[%clk 0:01:13.3]} 38...
Bc6 {[%clk 0:00:01.7]} 39. Bxc6 {[%clk 0:01:12.8]} 39... bxc6 {[%clk 0:00:02.6]}
40. Rd6+ {[%clk 0:01:13.3]} 40... Kf7 {[%clk 0:00:03]} 41. Rxc6 {[%clk
0:01:13.4]} 41... Rb2 {[%clk 0:00:03.7]} 42. Rxc3 {[%clk 0:01:13.4]} 1-0

[Event "Late-Titled-Tuesday-Blitz-August-29-2023"]
[Site "Chess.com"]
[Date "2023.08.29"]
[Round "6"]
[White "chessS1r"]
[Black "Roedor"]
[Result "1-0"]
[WhiteElo "2593"]
[BlackElo "2435"]
[TimeControl "180+1"]
[EndTime "15:04:42 PDT"]
[Termination "chessS1r won on time"]

1. d4 {[%clk 0:02:59.9]} 1... Nf6 {[%clk 0:02:58.3]} 2. c4 {[%clk 0:02:58.8]}
2... g6 {[%clk 0:02:57.9]} 3. g3 {[%clk 0:02:55.6]} 3... Bg7 {[%clk 0:02:57.7]}
4. Bg2 {[%clk 0:02:56]} 4... O-O {[%clk 0:02:58.2]} 5. Nc3 {[%clk 0:02:55.5]}
5... d6 {[%clk 0:02:58.5]} 6. e4 {[%clk 0:02:51]} 6... Nc6 {[%clk 0:02:57.3]} 7.
Nge2 {[%clk 0:02:51]} 7... e5 {[%clk 0:02:55.2]} 8. d5 {[%clk 0:02:49.4]} 8...
Nd4 {[%clk 0:02:53.3]} 9. h3 {[%clk 0:02:49.4]} 9... c5 {[%clk 0:02:50.4]} 10.
dxc6 {[%clk 0:02:47.4]} 10... bxc6 {[%clk 0:02:50.5]} 11. O-O {[%clk 0:02:42.7]}
11... c5 {[%clk 0:02:50.2]} 12. Be3 {[%clk 0:02:35.5]} 12... Be6 {[%clk
0:02:49.9]} 13. b3 {[%clk 0:02:35.1]} 13... Ne8 {[%clk 0:02:45.4]} 14. f4 {[%clk
0:02:32.2]} 14... f5 {[%clk 0:02:45.3]} 15. exf5 {[%clk 0:02:13.7]} 15... Bxf5
{[%clk 0:02:44.4]} 16. g4 {[%clk 0:02:12.9]} 16... Nc2 {[%clk 0:02:07.1]} 17.
Bf2 {[%clk 0:01:53.1]} 17... Nxa1 {[%clk 0:02:04]} 18. gxf5 {[%clk 0:01:53]}
18... exf4 {[%clk 0:01:51.6]} 19. Bd5+ {[%clk 0:01:45]} 19... Kh8 {[%clk
0:01:51]} 20. Qxa1 {[%clk 0:01:34.8]} 20... Rxf5 {[%clk 0:00:59.5]} 21. Qd1
{[%clk 0:01:20.1]} 21... Rg5+ {[%clk 0:00:53]} 22. Kh1 {[%clk 0:01:19.9]} 22...
Nc7 {[%clk 0:00:48.8]} 23. Bf3 {[%clk 0:01:12.4]} 23... Qd7 {[%clk 0:00:39.6]}
24. Kh2 {[%clk 0:01:07.2]} 24... Re8 {[%clk 0:00:36.8]} 25. Ne4 {[%clk
0:00:54.6]} 25... Rge5 {[%clk 0:00:13.7]} 26. N2c3 {[%clk 0:00:49.7]} 26... d5
{[%clk 0:00:05.7]} 27. cxd5 {[%clk 0:00:43.6]} 27... Nxd5 {[%clk 0:00:06]} 28.
Nxc5 {[%clk 0:00:42.2]} 1-0